bitfinex/quotes_ETHUSD_20240926
["timestamp","ask_amount","ask_price","bid_price","bid_amount"]
[1727350401351,3.80278,2629.7,2629.4,0.94463336]
[1727350401907,3.80263,2629.8,2629.4,0.94463336]
[1727350402360,3.80282,2629.7,2629.4,0.94463336]
[1727350402823,3.80254,2629.9,2629.5,0.22214835]
[1727350403154,3.80257,2629.8,2629.6,0.84595023]
[1727350403696,3.80245,2629.9,2629.6,0.84595023]
[1727350403890,3.80245,2629.9,2629.6,1.42225846]
[1727350404676,3.80258,2629.8,2629.6,1.42225846]
[1727350404871,3.80271,2629.7,2629.6,0.05255023]
[1727350405276,3.80293,2629.6,2629.2,0.7991782]
[1727350405480,3.80293,2629.6,2629.3,0.0529031]
[1727350407918,3.80257,2629.8,2629.3,0.0529031]
[1727350408077,3.80245,2629.9,2629.3,3.8561731]
[1727350408396,3.80245,2629.9,2629.4,0.7635]
[1727350408397,3.80272,2629.7,2629.4,0.7635]
[1727350408818,3.80272,2629.7,2629.5,0.05267368]
[1727350409511,7.60553,2629.7,2629.5,0.05267368]
[1727350409685,3.80272,2629.7,2629.5,0.05267368]
[1727350409886,3.80285,2629.6,2629.5,0.05267368]
[1727350412419,3.80273,2629.7,2629.5,0.05267368]
[1727350414889,3.80285,2629.6,2629.5,0.05267368]
[1727350417519,3.80274,2629.7,2629.5,0.05267368]
[1727350417723,7.60554,2629.7,2629.5,0.05267368]
[1727350418218,3.80285,2629.6,2629.5,0.05267368]
[1727350427239,3.80307,2629.5,2629.2,0.8295782]
[1727350429034,3.80287,2629.6,2629.2,5.39633802]
[1727350430036,0.4733,2629.9,2629.2,5.39627802]
[1727350430239,3.80266,2629.8,2629.3,6.27905999]
[1727350430932,3.80266,2629.8,2629.3,4.52583622]
[1727350431132,3.80266,2629.8,2629.4,0.05338995]
[1727350431328,3.80266,2629.8,2629.5,0.7939]
[1727350431556,3.80266,2629.8,2629.5,1.71152262]
[1727350431752,3.80266,2629.8,2629.6,0.05316054]
[1727350432329,3.80254,2629.9,2629.6,0.05316054]
[1727350432535,3.80271,2629.7,2629.6,0.05316054]
[1727350433578,3.80208,2630.2,2629.7,3.80264]
[1727350433880,3.80208,2630.2,2629.6,0.05316054]
[1727350433881,3.80228,2630.0,2629.8,1.17348005]
[1727350434173,3.80228,2630.0,2629.8,0.84076142]
[1727350434330,3.80242,2629.9,2629.8,0.84076142]
[1727350434530,3.80242,2629.9,2629.8,0.05286142]
[1727350434764,3.80242,2629.9,2629.6,0.7814]
[1727350434969,3.80242,2629.9,2629.8,0.05281782]
[1727350435129,3.80242,2629.9,2629.7,0.0529325]
[1727350435326,3.80228,2630.0,2629.8,0.05281782]
[1727350435544,3.80228,2630.0,2629.6,0.7814]
[1727350435771,7.60463,2630.0,2629.9,0.05270315]
[1727350435979,7.60463,2630.0,2629.6,0.7814]
[1727350436271,3.80228,2630.0,2629.6,0.7814]
[1727350436483,3.80228,2630.0,2629.6,1.23983]
[1727350436651,3.80228,2630.0,2629.7,0.0529325]
[1727350437677,3.80245,2629.9,2629.7,0.0529325]
[1727350444282,3.80257,2629.8,2629.7,0.0529325]
[1727350444479,3.80257,2629.8,2629.4,0.7574]
[1727350444665,3.80257,2629.8,2629.5,0.05273466]
[1727350446987,3.80274,2629.7,2629.5,0.05273466]
[1727350447144,3.80285,2629.6,2629.5,0.05273466]
[1727350447644,3.80285,2629.6,2629.2,0.8100782]
[1727350447874,3.80285,2629.6,2629.5,0.05277825]
[1727350448044,3.80285,2629.6,2629.2,0.8100782]
[1727350448249,3.80271,2629.8,2629.5,0.05277825]
[1727350448449,3.80271,2629.8,2629.2,6.36659197]
[1727350448686,7.60535,2629.8,2629.4,3.80313]
[1727350448916,3.80273,2629.7,2629.5,0.05297877]
[1727350449211,3.80288,2629.6,2629.2,4.6134882]
[1727350449778,3.80288,2629.6,2629.2,0.8100782]
[1727350449973,4.27618,2629.6,2629.2,0.8100782]
[1727350450178,3.80305,2629.5,2629.2,0.8100782]
[1727350450377,3.80329,2629.3,2629.2,0.0386782]
[1727350450633,3.80328,2629.4,2629.2,0.0386782]
[1727350450978,4.27625,2629.6,2629.2,0.0386782]
[1727350450979,4.27617,2629.6,2629.2,0.0386782]
[1727350451381,3.80265,2629.8,2629.2,1.79190197]
[1727350451382,3.80273,2629.7,2629.2,1.79190197]
[1727350451578,3.80273,2629.7,2629.4,0.8252]
[1727350451579,7.60553,2629.7,2629.4,0.8252]
[1727350451778,3.80273,2629.7,2629.4,0.8252]
[1727350454618,3.80286,2629.6,2629.4,0.8252]
[1727350454831,3.80273,2629.7,2629.4,0.8252]
[1727350454993,6.1852635,2630.1,2629.5,3.80292]
[1727350454994,0.4733,2630.0,2629.5,3.80292]
[1727350455198,3.80222,2630.1,2629.7,0.8216]
[1727350455688,3.80218,2630.1,2629.7,0.8216]
[1727350456202,3.80218,2630.1,2629.7,4.62431]
[1727350456409,3.80218,2630.1,2629.8,1.08184482]
[1727350456594,4.27543,2630.2,2629.8,1.08184482]
[1727350456798,3.80214,2630.1,2629.8,1.08184482]
[1727350458211,7.60436,2630.1,2629.8,1.08184482]
[1727350458523,3.80214,2630.1,2629.8,1.08184482]
[1727350459084,7.60437,2630.1,2629.8,1.08184482]
[1727350459691,3.80214,2630.1,2629.8,1.08184482]
[1727350460115,7.60436,2630.1,2629.8,1.08184482]
[1727350460733,3.80229,2630.0,2629.8,1.08184482]
[1727350461252,3.80229,2630.0,2629.9,0.05233695]
[1727350461725,3.80229,2630.0,2629.7,0.8216]
[1727350461925,3.80229,2630.0,2629.8,0.05245163]
[1727350462258,4.275,2630.4,2629.7,0.8216]
[1727350462259,3.80255,2629.9,2629.7,0.8216]
[1727350462417,3.80228,2630.0,2629.9,0.0521713]
[1727350462760,3.80242,2629.9,2629.5,0.7853]
[1727350462925,3.80264,2629.8,2629.5,0.7853]
[1727350463592,3.80242,2629.9,2629.5,0.7853]
[1727350464035,3.80264,2629.8,2629.5,0.7853]
[1727350464753,3.80277,2629.7,2629.5,0.7853]
[1727350465170,3.80285,2629.6,2629.2,3.8534782]
[1727350465324,3.803,2629.5,2629.2,4.61917402]
[1727350465648,3.803,2629.5,2629.2,0.8534782]
[1727350470130,0.4733,2629.7,2629.2,0.8534782]
[1727350470336,3.80302,2629.5,2629.2,0.8534782]
[1727350471771,3.8029,2629.6,2629.2,0.8534782]
[1727350471968,3.80304,2629.5,2629.2,0.8534782]
[1727350475178,3.8029,2629.6,2629.2,4.6568982]
[1727350475835,7.60587,2629.6,2629.2,4.6568982]
[1727350476069,7.60586,2629.6,2629.2,4.6568982]
[1727350476377,7.60586,2629.6,2629.3,0.05322387]
[1727350476378,3.8029,2629.6,2629.3,0.05322387]
[1727350476937,3.80303,2629.5,2629.3,0.05322387]
[1727350479971,7.60611,2629.5,2629.3,0.05322387]
[1727350480170,3.80303,2629.5,2629.3,0.05322387]
[1727350480874,4.610944,2629.5,2629.3,0.05322387]
[1727350481231,3.80303,2629.5,2629.3,0.05322387]
[1727350484343,3.80314,2629.4,2629.3,0.05322387]
[1727350484748,4.27644,2629.4,2629.3,0.05322387]
[1727350486987,3.80329,2629.3,2629.2,0.0386782]
[1727350491215,3.80329,2629.3,2629.2,0.09258363]
[1727350494381,3.80329,2629.3,2629.2,0.08183333]
[1727350500294,4.24423787,2629.3,2629.2,0.08183333]
[1727350503300,4.71753787,2629.3,2629.2,0.08183333]
[1727350506735,7.71753787,2629.3,2629.2,0.08183333]
[1727350506935,7.71753787,2629.3,2629.2,0.0279279]
[1727350507764,7.71753787,2629.3,2628.6,2.77862845]
[1727350507765,7.24423787,2629.3,2628.6,2.77862845]
[1727350508060,6.03068377,2628.7,2628.6,2.77862845]
[1727350509426,9.03068377,2628.7,2628.6,2.77862845]
[1727350519550,3.80416,2628.7,2628.6,2.77862845]
[1727350520109,5.55738377,2628.7,2628.6,2.77862845]
[1727350520725,3.80299,2629.6,2628.7,0.8191]
[1727350521048,3.8035,2629.2,2628.9,0.8122]
[1727350521257,3.80368,2629.1,2629.0,0.25654238]
[1727350521553,5.55690377,2629.1,2628.6,3.05649129]
[1727350521727,3.80416,2628.7,2628.6,3.84529129]
[1727350522953,3.80401,2628.8,2628.6,3.84529129]
[1727350523614,3.80401,2628.8,2628.7,0.38452913]
[1727350524273,7.60795,2628.9,2628.7,0.38452913]
[1727350524452,3.80397,2628.9,2628.7,0.38452913]
[1727350525148,3.80401,2628.8,2628.7,0.38452913]
[1727350525678,3.80397,2628.9,2628.7,0.38452913]
[1727350525851,1.75322377,2628.8,2628.6,3.56742845]
[1727350526172,3.80402,2628.8,2628.6,3.56742845]
[1727350526375,3.80416,2628.7,2628.6,3.56742845]
[1727350526671,3.80402,2628.8,2628.6,3.56742845]
[1727350526976,7.60762,2629.0,2628.6,3.9241713]
[1727350527273,3.80406,2628.8,2628.6,3.9241713]
[1727350528075,7.60815,2628.8,2628.6,3.9241713]
[1727350528281,3.80406,2628.8,2628.6,3.9241713]
[1727350528575,7.60815,2628.8,2628.6,3.9241713]
[1727350528908,3.80406,2628.8,2628.6,3.9241713]
[1727350529080,3.80416,2628.7,2628.6,3.9241713]
[1727350530068,3.80406,2628.8,2628.6,3.9241713]
[1727350530632,7.60818,2628.8,2628.6,3.9241713]
[1727350530852,3.80406,2628.8,2628.6,3.9241713]
[1727350531060,0.4733,2629.8,2628.8,0.8196]
[1727350531265,3.80322,2629.4,2629.0,0.8196]
[1727350531770,3.80331,2629.3,2629.0,0.8196]
[1727350531967,3.80322,2629.4,2629.0,0.8196]
[1727350531968,7.60645,2629.4,2629.1,0.08825908]
[1727350532132,3.80322,2629.4,2629.1,0.08825908]
[1727350533232,3.80337,2629.3,2629.1,0.08825908]
[1727350535200,3.80322,2629.4,2629.1,0.08825908]
[1727350535512,3.80343,2629.3,2629.1,0.08825908]
[1727350536008,3.80343,2629.2,2629.1,0.08825908]
[1727350536803,3.80332,2629.3,2629.1,0.91695908]
[1727350537004,3.80332,2629.3,2629.1,0.08825908]
[1727350537005,3.80343,2629.2,2629.1,0.08825908]
[1727350537326,3.80377,2629.0,2628.8,0.793]
[1727350537482,7.60763,2629.0,2628.8,2.06948522]
[1727350537874,3.80377,2629.0,2628.8,2.06948522]
[1727350538086,3.80287,2629.6,2629.1,3.80344]
[1727350538298,3.80266,2629.8,2629.5,0.767]
[1727350538467,3.80285,2629.6,2629.5,0.767]
[1727350540870,3.80273,2629.7,2629.5,0.767]
[1727350541570,3.80285,2629.6,2629.5,0.767]
[1727350542290,3.80273,2629.7,2629.5,0.767]
[1727350543289,7.60555,2629.7,2629.5,0.767]
[1727350543911,3.80239,2630.0,2629.7,0.8187]
[1727350544108,3.80208,2630.2,2629.7,4.62134]
[1727350544276,7.60417,2630.2,2629.7,4.62134]
[1727350544711,3.80218,2630.1,2629.7,0.8187]
[1727350545471,3.80208,2630.2,2629.7,0.8187]
[1727350545472,3.80228,2630.0,2629.7,0.8187]
[1727350546472,7.60467,2630.0,2629.7,0.8187]
[1727350547310,3.80228,2630.0,2629.7,0.8187]
[1727350547975,3.80228,2630.0,2629.7,1.280865]
[1727350548377,4.70744513,2630.5,2629.7,1.280865]
[1727350548378,3.80156,2630.5,2629.9,3.80237]
[1727350548704,3.80149,2630.6,2630.2,0.761]
[1727350551316,3.80149,2630.6,2630.3,0.08579791]
[1727350553027,3.80122,2630.8,2630.3,0.08579791]
[1727350553028,3.80122,2630.8,2630.4,0.7532]
[1727350553223,3.80099,2630.9,2630.4,8.35648]
[1727350553423,3.80099,2630.9,2630.5,0.83883964]
[1727350553607,3.80099,2630.9,2630.5,1.3028846]
[1727350554812,3.80093,2631.0,2630.6,0.756]
[1727350555022,3.80093,2631.0,2630.6,4.5574]
[1727350555322,3.801,2630.9,2630.7,0.08548139]
[1727350557472,3.8008,2631.1,2630.7,3.88674139]
[1727350557822,3.80086,2631.0,2630.8,0.7989]
[1727350558113,3.8008,2631.1,2630.9,0.08532316]
[1727350558114,7.60159,2631.1,2630.9,0.08532316]
[1727350558431,3.80083,2631.0,2630.9,0.08532316]
[1727350560217,4.560992,2631.0,2630.9,0.08532316]
[1727350560603,3.80141,2630.6,2630.5,0.7989]
[1727350561120,3.80141,2630.6,2630.5,0.88402834]
[1727350561919,3.80141,2630.6,2630.5,0.08512834]
[1727350562417,3.80141,2630.6,2630.3,0.823]
[1727350562578,3.8017,2630.4,2630.3,0.823]
[1727350563690,3.80141,2630.6,2630.3,0.823]
[1727350563892,3.80157,2630.5,2630.3,0.823]
[1727350564121,3.80121,2630.8,2630.3,0.823]
[1727350564287,3.80129,2630.7,2630.3,0.823]
[1727350565210,3.80121,2630.8,2630.4,3.80162]
[1727350565526,3.80099,2630.9,2630.5,0.7768]
[1727350565692,3.80099,2630.9,2630.5,5.09005364]
[1727350565892,3.80099,2630.9,2630.5,1.28850364]
[1727350566088,3.80099,2630.9,2630.6,0.08483421]
[1727350567892,3.80093,2631.0,2630.6,0.08483421]
[1727350567893,3.80112,2630.8,2630.6,0.08483421]
[1727350568506,3.80099,2630.9,2630.6,0.08483421]
[1727350568828,3.80099,2630.9,2630.6,0.4762008]
[1727350569130,3.80077,2631.1,2630.6,0.4762008]
[1727350570622,3.80099,2630.9,2630.6,0.4762008]
[1727350570993,3.80119,2630.8,2630.6,0.08483421]
[1727350571206,3.80126,2630.7,2630.6,0.08483421]
[1727350573391,3.80118,2630.8,2630.6,0.08483421]
[1727350573635,7.60242,2630.8,2630.6,0.08483421]
[1727350573942,3.80118,2630.8,2630.6,0.08483421]
[1727350574432,7.60241,2630.8,2630.6,0.08483421]
[1727350574728,4.27393,2631.2,2630.6,0.08483421]
[1727350574729,0.4733,2631.2,2630.6,0.08483421]
[1727350574930,3.8009,2631.0,2630.6,0.08483421]
[1727350575136,3.80064,2631.2,2630.7,4.6077]
[1727350575343,3.80071,2631.1,2630.8,0.46925342]
[1727350575498,3.80071,2631.1,2630.8,0.0818683]
[1727350575699,3.80087,2631.0,2630.7,0.8065]
[1727350575927,3.80071,2631.1,2630.8,0.0818683]
[1727350576332,3.80071,2631.1,2630.7,2.02716878]
[1727350576504,3.80071,2631.1,2630.9,0.08178919]
[1727350576706,3.80071,2631.1,2630.7,2.02716878]
[1727350576904,3.80071,2631.1,2630.8,0.0818683]
[1727350577134,3.80071,2631.1,2630.7,2.02716878]
[1727350577329,3.80071,2631.1,2630.9,0.08178919]
[1727350577531,3.80071,2631.1,2630.8,0.0818683]
[1727350577697,3.0,2631.6,2631.0,0.08171008]
[1727350577698,0.4733,2631.6,2631.0,0.08171008]
[1727350577900,0.4733,2631.6,2631.1,4.6243378]
[1727350577901,3.80011,2631.6,2631.1,4.6243378]
[1727350578111,3.80011,2631.6,2631.3,0.827]
[1727350578317,3.80011,2631.6,2631.4,0.08124299]
[1727350578909,3.8382225,2631.8,2631.4,0.08124299]
[1727350579243,3.8381225,2631.8,2631.4,0.08124299]
[1727350579541,0.0384425,2631.8,2631.5,0.827]
[1727350579903,0.0384425,2631.8,2631.6,0.08108485]
[1727350580647,3.8381225,2631.8,2631.6,0.08108485]
[1727350580857,0.0384425,2631.8,2631.6,0.08108485]
[1727350581359,3.7881225,2631.8,2631.6,0.55190834]
[1727350582058,3.79954,2631.9,2631.6,0.55190834]
[1727350582907,3.79975,2631.8,2631.6,0.55190834]
[1727350583110,3.79975,2631.8,2631.6,0.08108485]
[1727350583626,3.79982,2631.7,2631.6,0.08108485]
[1727350584319,0.0068323,2632.1,2631.6,4.67207485]
[1727350584508,0.0068323,2632.1,2631.7,1.63804126]
[1727350584509,3.8061423,2632.1,2631.7,1.63804126]
[1727350584704,7.6054723,2632.1,2631.8,0.08053842]
[1727350584908,7.6054723,2632.1,2631.7,1.63804126]
[1727350585121,0.0068323,2632.1,2632.0,8.3878278]
[1727350585309,0.0068323,2632.1,2632.0,0.7911]
[1727350585505,0.0068323,2632.1,2632.0,8.46472347]
[1727350585753,0.0068323,2632.1,2632.0,0.86799567]
[1727350586047,0.0068323,2632.1,2632.0,1.71449502]
[1727350586852,0.0068323,2632.1,2632.0,0.86799567]
[1727350592207,0.0068323,2632.1,2632.0,0.07689567]
[1727350592641,0.0068323,2632.1,2631.8,0.7716]
[1727350592867,0.0068323,2632.1,2632.0,0.07665861]
[1727350593012,0.0068323,2632.1,2631.9,3.87624766]
[1727350593211,0.0068323,2632.1,2632.0,0.54144338]
[1727350593458,3.8060723,2632.1,2632.0,0.07665861]
[1727350593754,3.8060723,2632.1,2631.8,0.7716]
[1727350593916,3.8060723,2632.1,2632.0,0.07665861]
[1727350594111,3.8060723,2632.1,2631.8,0.7716]
[1727350594351,3.8060723,2632.1,2631.9,0.07673766]
[1727350594534,3.79939,2632.0,2631.9,0.07673766]
[1727350594731,3.79912,2632.2,2631.9,0.07673766]
[1727350594732,3.79932,2632.1,2631.9,0.07673766]
[1727350595272,3.79931,2632.1,2631.9,0.07673766]
[1727350595640,3.79918,2632.2,2631.9,0.07673766]
[1727350596045,3.79918,2632.2,2631.7,3.79976]
[1727350596344,3.79918,2632.2,2631.8,0.840054]
[1727350596665,3.79918,2632.2,2631.8,0.91210572]
[1727350597373,7.59837,2632.2,2631.8,0.91210572]
[1727350597569,3.79918,2632.2,2631.8,0.91210572]
[1727350598449,7.59842,2632.2,2631.8,0.91210572]
[1727350598769,7.59842,2632.2,2631.8,0.07205172]
[1727350599074,3.79918,2632.2,2631.7,3.79976]
[1727350599264,3.79918,2632.2,2631.8,3.7996]
[1727350599475,3.79918,2632.2,2631.8,3.87165172]
[1727350600341,3.79918,2632.2,2631.8,0.07205172]
[1727350600751,3.79918,2632.2,2631.7,7.59945]
[1727350600973,3.79918,2632.2,2631.9,0.07197267]
[1727350601181,3.79918,2632.2,2631.8,1.2918205]
[1727350601472,4.27222,2632.4,2632.0,0.07189362]
[1727350601677,8.07117,2632.4,2632.0,0.7652]
[1727350601861,4.27222,2632.4,2632.1,0.07181459]
[1727350602378,4.2722,2632.4,2632.1,0.07181459]
[1727350603262,3.7989,2632.4,2632.1,0.07181459]
[1727350603459,3.7989,2632.4,2632.1,0.53545705]
[1727350605083,3.7989,2632.4,2632.1,0.07181459]
[1727350605249,3.7991,2632.2,2632.1,0.07181459]
[1727350608153,4.2724,2632.2,2632.1,0.07181459]
[1727350608355,4.2724,2632.2,2631.7,0.8273]
[1727350608672,3.7991,2632.2,2632.1,0.07175099]
[1727350608871,3.7991,2632.2,2631.7,4.62704]
[1727350609191,3.7991,2632.2,2632.1,0.07170476]
[1727350609378,3.7991,2632.2,2631.8,1.22243378]
[1727350609579,3.7991,2632.2,2632.1,0.07170476]
[1727350609889,3.7991,2632.2,2631.8,1.22243378]
[1727350610048,3.8369725,2632.6,2631.8,1.22243378]
[1727350610049,0.0384425,2632.6,2632.2,0.7945]
[1727350610294,0.0384425,2632.6,2632.5,11.3905078]
[1727350610891,0.0384425,2632.6,2632.5,8.46190803]
[1727350611075,0.0384425,2632.6,2632.5,9.29657232]
[1727350614427,0.5117425,2633.4,2633.3,3.79751]
[1727350614428,0.0384425,2633.4,2633.3,3.79751]
[1727350615211,0.0384425,2633.4,2633.3,4.6752622]
[1727350615423,0.0384425,2633.4,2633.3,5.89769598]
[1727350618387,0.0384425,2633.4,2633.3,6.52363629]
[1727350620129,0.0384425,2634.2,2633.7,0.7913]
[1727350620313,0.0384425,2634.2,2634.1,5.13976]
[1727350620474,0.0384425,2634.2,2634.1,8.86881625]
[1727350620822,0.0384425,2634.2,2634.1,8.79290873]
[1727350623083,0.0384425,2634.2,2634.1,8.24290873]
[1727350623276,0.0384425,2634.2,2634.1,5.24290873]
[1727350624313,0.0384425,2634.2,2634.1,0.06820135]
[1727350624700,0.0384425,2634.2,2633.9,3.79663]
[1727350624919,0.0384425,2634.2,2634.0,0.06286293]
[1727350625093,0.0384425,2634.2,2633.8,3.79677]
[1727350625298,0.0384425,2634.2,2633.9,0.06294185]
[1727350626488,3.79649,2634.1,2633.9,0.06294185]
[1727350626791,3.79649,2634.1,2633.6,4.5859]
[1727350627106,0.0384425,2634.2,2633.6,0.7889]
[1727350627424,0.0384425,2634.2,2633.7,0.06309972]
[1727350627425,3.79666,2633.9,2633.7,0.06309972]
[1727350628027,8.1059278,2633.8,2633.7,0.06309972]
[1727350628231,0.5118,2633.8,2633.7,0.06309972]
[1727350628430,3.79666,2633.9,2633.3,3.79744]
[1727350628725,3.79666,2633.9,2633.3,0.759502]
[1727350628933,3.79679,2633.8,2633.4,0.06193386]
[1727350629092,3.79679,2633.8,2633.4,0.06084643]
[1727350629289,3.79698,2633.7,2633.4,0.06084643]
[1727350629487,3.7971,2633.6,2633.1,3.79779]
[1727350629730,0.5118,2633.6,2633.2,0.06205554]
[1727350629888,3.79775,2633.2,2632.8,1.211713]
[1727350630085,0.5118,2633.6,2632.9,0.06229247]
[1727350630086,3.79759,2633.3,2632.9,0.06229247]
[1727350630288,3.7978,2633.1,2632.9,0.48969302]
[1727350630485,3.7978,2633.1,2632.9,0.06229247]
[1727350630688,3.7976,2633.3,2632.9,0.06229247]
[1727350631040,3.7978,2633.1,2632.9,0.06229247]
[1727350631728,3.7976,2633.3,2632.9,0.06229247]
[1727350632090,3.79782,2633.1,2632.9,0.06229247]
[1727350632297,3.7976,2633.3,2632.9,0.06229247]
[1727350632826,3.79759,2633.3,2632.9,0.06229247]
[1727350633030,3.79737,2633.4,2632.9,4.28439602]
[1727350633237,3.79737,2633.4,2632.9,0.48632602]
[1727350633443,3.79752,2633.3,2632.9,0.48632602]
[1727350634548,3.79768,2633.2,2632.9,0.06229247]
[1727350634840,3.79768,2633.2,2632.8,3.79822]
[1727350635017,3.79768,2633.2,2633.0,0.06221349]
[1727350635216,3.79768,2633.2,2632.9,0.06229247]
[1727350635420,3.79768,2633.2,2633.1,0.06213451]
[1727350635904,7.59427,2633.6,2633.2,0.8087]
[1727350636240,3.7973,2633.5,2633.3,0.06197657]
[1727350636755,3.7973,2633.5,2633.4,0.06189761]
[1727350637125,3.7973,2633.5,2633.2,0.8087]
[1727350637443,3.7973,2633.5,2633.3,0.06197657]
[1727350637644,3.79737,2633.4,2633.3,0.06197657]
[1727350637850,3.7973,2633.5,2633.2,0.8087]
[1727350637851,3.79709,2633.6,2633.2,0.8087]
[1727350638006,3.79704,2633.7,2633.3,0.06197657]
[1727350638205,3.79704,2633.7,2633.3,0.52881423]
[1727350638441,3.79703,2633.7,2633.3,0.46683766]
[1727350638642,3.79703,2633.7,2633.4,0.06189761]
[1727350639501,3.79702,2633.7,2633.4,0.06189761]
[1727350640810,3.79722,2633.5,2633.4,0.06189761]
[1727350641203,3.79722,2633.5,2633.2,0.8087]
[1727350641407,3.79722,2633.5,2633.4,0.06246738]
[1727350641607,3.79737,2633.4,2633.3,0.06254634]
[1727350641849,3.79776,2633.2,2632.9,0.8123]
[1727350642143,3.7978,2633.1,2632.9,0.8123]
[1727350643443,3.79766,2633.2,2632.9,0.8123]
[1727350643948,3.79758,2633.3,2632.9,0.8123]
[1727350643949,3.79788,2633.1,2632.9,0.8123]
[1727350644452,3.79702,2633.7,2633.2,3.79752]
[1727350644747,0.5118,2633.9,2633.1,3.79778]
[1727350644748,0.5118,2633.9,2633.1,3.87372707]
[1727350644906,0.5118,2633.9,2633.4,4.58636]
[1727350644907,3.79679,2633.9,2633.4,4.58636]
[1727350645108,3.79669,2633.9,2633.4,0.789]
[1727350645547,3.79642,2634.1,2633.4,0.789]
[1727350645731,3.79642,2634.1,2633.4,1.68159827]
[1727350645732,3.79667,2633.9,2633.4,1.68159827]
[1727350646134,3.79667,2633.9,2633.4,5.47882827]
[1727350646849,3.79644,2634.1,2633.7,3.79692]
[1727350647212,0.0384425,2634.2,2633.7,3.79692]
[1727350647413,0.0384425,2634.2,2634.0,3.79643]
[1727350647651,0.0384425,2634.2,2633.9,4.54855]
[1727350648881,0.0384425,2634.2,2634.0,3.79649]
[1727350649044,0.0384425,2634.2,2634.0,3.87241657]
[1727350649381,0.0384425,2634.2,2634.0,4.63853666]
[1727350650557,0.0384425,2634.2,2634.0,0.84209666]
[1727350650747,0.0384425,2634.2,2634.1,0.752]
[1727350651262,0.0384425,2634.2,2634.1,8.3456978]
[1727350652277,0.0384425,2634.2,2634.1,11.3456978]
[1727350652446,0.0384425,2634.2,2634.1,11.78677561]
[1727350655594,0.0384425,2634.2,2634.1,7.98943781]
[1727350655792,0.0384425,2634.2,2634.1,0.752]
[1727350655993,0.0384425,2634.2,2634.1,4.54836]
[1727350656295,0.0384425,2634.2,2634.1,0.81027032]
[1727350657091,0.0384425,2634.2,2634.1,4.60663032]
[1727350657267,0.0384425,2634.2,2634.1,5.51398084]
[1727350658148,0.0384425,2634.2,2634.1,1.71762084]
[1727350658786,0.0384425,2634.2,2634.1,5.51398084]
[1727350660254,0.0384425,2634.2,2634.1,1.71762084]
[1727350661369,0.0384425,2634.2,2634.1,0.05827032]
[1727350661781,0.0384425,2634.2,2633.8,4.6219]
[1727350661986,0.0384425,2634.2,2634.1,0.05655577]
[1727350662201,3.8346525,2634.2,2633.8,0.8252]
[1727350662349,3.8346525,2634.2,2633.6,4.62223]
[1727350662350,3.79636,2634.1,2633.6,4.62223]
[1727350662552,3.8346525,2634.2,2633.7,3.79692]
[1727350662789,3.8346525,2634.2,2633.7,7.59376]
[1727350662984,3.8346525,2634.2,2633.8,3.79679]
[1727350663691,3.8346525,2634.2,2633.7,7.5937]
[1727350663988,3.8346525,2634.2,2633.8,3.79677]
[1727350664286,3.8346525,2634.2,2633.7,4.72297208]
[1727350664490,3.8346525,2634.2,2633.7,8.51984208]
[1727350665055,3.8346525,2634.2,2633.8,3.79676]
[1727350665660,3.8346525,2634.2,2633.7,0.92613208]
[1727350665872,3.8346525,2634.2,2633.7,3.79684]
[1727350666490,3.8346525,2634.2,2633.8,3.79676]
[1727350668587,3.8346525,2634.2,2633.8,3.79671]
[1727350669797,0.0384425,2634.2,2633.8,7.5934]
[1727350669953,0.0384425,2634.2,2633.8,8.814959]
[1727350670296,0.0384425,2634.2,2633.8,5.018249]
[1727350670297,3.8346625,2634.2,2633.8,5.018249]
[1727350670508,3.8346625,2634.2,2633.8,3.79669]
[1727350670711,0.0384425,2634.2,2633.9,0.7606]
[1727350671069,0.0384425,2634.2,2634.0,8.04872378]
[1727350671265,0.0384425,2634.2,2634.0,4.30781864]
[1727350671469,0.0384425,2634.2,2634.0,8.10424864]
[1727350671665,0.0384425,2634.2,2634.1,3.79636]
[1727350672206,0.0384425,2634.2,2634.1,3.85187594]
[1727350672373,0.0384425,2634.2,2634.1,4.73834591]
[1727350673290,0.0384425,2634.2,2634.1,0.94198591]
[1727350673589,0.0384425,2634.2,2634.1,0.05551594]
[1727350674226,0.0384425,2634.2,2634.1,3.85187594]
[1727350676112,0.0384425,2634.2,2634.1,0.05551594]
[1727350676324,0.0384425,2634.2,2634.1,8.40301374]
[1727350676819,0.0384425,2634.2,2634.1,11.40301374]
[1727350677029,0.0384425,2634.2,2634.1,12.96854249]
[1727350689518,0.0384425,2634.2,2634.1,13.35615837]
[1727350691653,0.0384425,2634.2,2634.1,12.96854249]
[1727350692016,0.0384425,2634.2,2634.1,14.26973367]
[1727350692510,0.0384425,2634.2,2634.1,15.6398558]
[1727350695059,0.0384425,2634.2,2634.1,15.63990536]
[1727350695267,0.0384425,2634.2,2634.1,14.26973367]
[1727350696146,0.0384425,2634.2,2634.1,15.63987394]
[1727350696349,0.0384425,2634.2,2634.1,15.63986283]
[1727350697048,0.0384425,2634.2,2634.1,15.63986725]
[1727350697654,0.0384425,2634.2,2634.1,14.26973367]
[1727350697850,0.0384425,2634.2,2634.1,15.6399048]
[1727350698260,0.0384425,2634.2,2634.1,14.26982827]
[1727350698620,0.0384425,2634.2,2634.1,15.63987936]
[1727350698941,0.0384425,2634.2,2634.1,15.63987062]
[1727350699248,0.0384425,2634.2,2634.1,14.26982827]
[1727350699445,0.0384425,2634.2,2634.1,3.85187594]
[1727350699630,0.0384425,2634.2,2634.1,0.05551594]
[1727350700254,0.0384425,2634.2,2633.9,3.79663]
[1727350700464,0.5118,2634.1,2634.0,3.7965]
[1727350701054,0.5118,2634.1,2634.0,3.84975445]
[1727350702664,0.0384425,2634.2,2634.1,3.79636]
[1727350703225,0.0384425,2634.2,2634.1,3.84953554]
[1727350708943,0.0384425,2634.2,2634.1,0.05317554]
[1727350710178,0.0384425,2634.2,2634.1,3.84953554]
[1727350716905,0.0384425,2634.2,2634.1,3.79636]
[1727350717064,0.0384425,2634.2,2634.1,3.84996554]
[1727350717675,3.30492915,2634.6,2634.1,3.84996554]
[1727350718312,3.30492915,2634.6,2634.1,0.05360554]
[1727350718615,3.30492915,2634.6,2634.2,3.79621]
[1727350718970,3.30492915,2634.6,2634.3,0.05344772]
[1727350719311,3.30492915,2634.6,2634.2,3.79621]